fUST/lending_fUST_20250929
["ID","MTS","AMOUNT","RATE_DAILY","PERIOD"]
[388385769,1759143048328,-480.0,0.00027397,7]
[388385770,1759143048337,-480.0,0.00027397,7]
[388385771,1759143048347,-525.76,0.00027397,7]
[388385772,1759143048356,-480.0,0.00027397,7]
[388385773,1759143048365,-480.0,0.00027397,7]
[388385774,1759143048374,-313.4461521,0.00027397,7]
[388385775,1759143048383,-480.0,0.00027397,7]
[388385776,1759143048392,-2391.59405903,0.00027397,7]
[388385777,1759143049191,-300.0,0.0002664,10]
[388385794,1759143906554,21661.34690515,0.00023,2]
[388385826,1759144231999,-350.0,0.00024308,2]
[388385828,1759144232009,-208.8440378,0.00025105,2]
[388385830,1759144232018,-393.55300612,0.00025105,2]
[388385832,1759144232027,-500.0,0.00025205,2]
[388385833,1759144232035,-178.1770971,0.00025649,2]
[388385835,1759144232044,-5665.8313904,0.00025822,2]
[388385837,1759144232053,-250.0,0.00025915,2]
[388385839,1759144232062,-1200.0,0.00026555,2]
[388385841,1759144232076,-881.0,0.00026556,2]
[388385843,1759144232085,-300.0,0.00026556,2]
[388385845,1759144232093,-300.0,0.00026556,2]
[388385847,1759144232102,-300.0,0.00026556,2]
[388385849,1759144232111,-300.0,0.00026556,2]
[388385851,1759144232120,-14794.95272997,0.00026557,2]
[388385853,1759144232136,-4103.59999999,0.00026557,2]
[388385855,1759144232149,-370.04180308,0.00026557,2]
[388385857,1759144232161,-10359.61152893,0.00026557,2]
[388385859,1759144232172,-2537.8126091,0.00026557,2]
[388385862,1759144232182,-40.18020926,0.00026558,2]
[388385867,1759144232206,-209.81979074,0.00026558,2]
[388385869,1759144232216,-250.0,0.00026558,2]
[388385872,1759144232225,-250.0,0.00026558,2]
[388385875,1759144232235,-253.97724451,0.00026558,2]
[388385877,1759144232244,-500.0,0.00026573,2]
[388385880,1759144232255,-500.0,0.00026573,2]
[388385882,1759144232264,-500.0,0.00026573,2]
[388385884,1759144232273,-500.0,0.00026573,2]
[388385886,1759144232282,-475.91208952,0.00026573,2]
[388385888,1759144232292,-500.0,0.00026573,2]
[388385890,1759144232302,-320.10942432,0.00026574,7]
[388385892,1759144232314,-173.89918666,0.00026574,7]
[388385894,1759144232324,-17298.39791522,0.00026574,2]
[388385896,1759144232333,-168.0,0.00026634,2]
[388385898,1759144232344,-312.27400991,0.00026749,2]
[388385900,1759144232353,-321.70288658,0.00026749,2]
[388385902,1759144232362,-410.0,0.00026898,2]
[388385903,1759144232371,-427.525,0.00026898,2]
[388385904,1759144232380,-154.712347,0.00026918,10]
[388385905,1759144232388,-154.712347,0.0002695,23]
[388385906,1759144232397,-303.01,0.00026954,2]
[388385907,1759144232406,-4810.96423574,0.0002699,2]
[388385939,1759144237974,-163.99023217,0.00026556,2]
[388385941,1759144237984,-178.73474732,0.00026989,2]
[388385943,1759144237993,-42.46667366,0.00026989,2]
[388385946,1759144238005,-157.36545208,0.00026989,2]
[388385948,1759144238014,-111.25376614,0.00026989,2]
[388385950,1759144238029,-388.74623386,0.00026989,2]
[388385952,1759144238038,-500.0,0.00026989,2]
[388385954,1759144238048,-73.01376574,0.00026989,2]
[388386001,1759144240127,-426.98623426,0.00026989,2]
[388386002,1759144240137,-500.0,0.00026989,2]
[388386004,1759144240146,-500.0,0.00026989,2]
[388386006,1759144240155,-500.0,0.00026989,2]
[388386007,1759144240164,-595.57016626,0.00026989,2]
[388386009,1759144240174,-500.0,0.00026989,2]
[388386011,1759144240182,-500.0,0.00026989,2]
[388386013,1759144240191,-500.0,0.00026989,2]
[388386015,1759144240201,-1070.44290839,0.0002699,2]
[388386017,1759144240212,-506.70629638,0.0002699,2]
[388386032,1759144243114,-2935.82844598,0.0002699,2]
[388386033,1759144243124,-168.0,0.00027054,2]
[388386034,1759144243134,-262.51197969,0.00027187,2]
[388386035,1759144243144,-1038.64746723,0.00027187,2]
[388386036,1759144243154,-150.0,0.00027196,2]
[388386037,1759144243163,-262.51197967,0.00027212,2]
[388386038,1759144243173,-500.0,0.00027218,7]
[388386039,1759144243185,-193.69359288,0.00027234,2]
[388386040,1759144243195,-262.51197967,0.00027237,2]
[388386041,1759144243204,-227.09,0.00027244,16]
[388386042,1759144243213,-151.19763648,0.00027247,2]
[388386043,1759144243222,-150.0,0.00027258,2]
[388386044,1759144243231,-979.0,0.00027258,2]
[388386045,1759144243240,-289.18663764,0.00027258,2]
[388386046,1759144243251,-339.81336236,0.00027258,2]
[388386047,1759144243261,-2156.0,0.00027258,2]
[388386048,1759144243270,-262.51197967,0.00027262,2]
[388386049,1759144243280,-614.91,0.00027266,10]
[388386050,1759144243289,-500.0,0.00027273,2]
[388386051,1759144243298,-500.0,0.00027273,2]
[388386052,1759144243307,-500.0,0.00027273,2]
[388386053,1759144243317,-504.39253887,0.00027273,2]
[388386054,1759144243327,-500.0,0.00027273,2]
[388386055,1759144243336,-500.0,0.00027273,2]
[388386056,1759144243345,-500.0,0.00027273,2]
[388386057,1759144243354,-500.0,0.00027273,2]
[388386058,1759144243364,-500.0,0.00027273,2]
[388386059,1759144243374,-500.0,0.00027273,2]
[388386060,1759144243383,-476.76873436,0.00027273,2]
[388386061,1759144243413,-19.3508619,0.00027273,2]
[388386062,1759144243424,-3.88040374,0.00027273,2]
[388386063,1759144243433,-500.0,0.00027273,2]
[388386064,1759144243442,-500.0,0.00027273,2]
[388386065,1759144243451,-26409.1897217,0.00027276,2]
[388386066,1759144243461,-79227.5691652,0.00027277,2]
[388386067,1759144243470,-247.84,0.00027277,3]
[388386068,1759144243479,-168.0,0.00027283,2]
[388386069,1759144243488,-2880.4,0.00027286,2]
[388386070,1759144243498,-6000.0,0.00027286,2]
[388386071,1759144243507,-6000.0,0.00027286,2]
[388386072,1759144243517,-5000.0,0.00027286,2]
[388386073,1759144243526,-41258.12070936,0.00027287,2]
[388386098,1759144246166,-480.62163891,0.00027287,2]
[388386099,1759144246220,-8493.32850372,0.00027287,2]
[388386102,1759144951990,20000.0,0.000272,120]
[388386108,1759145287146,1163.53,0.00023401,2]
[388386109,1759145294451,-515.86809926,0.000237,14]
[388386111,1759145300695,-4.94636057,0.000237,14]
[388386117,1759145347510,-443.80594615,0.00024181,12]
[388386118,1759145358784,-328.54708538,0.00024181,12]
[388386119,1759145374280,-162.1012186,0.00024181,12]
[388386121,1759145390059,-123.92920522,0.00024181,12]
[388386185,1759145432314,-252.05442859,0.00024423,12]
[388386187,1759145432324,-500.0,0.00025205,2]
[388386189,1759145432334,-5446.6047662,0.00025751,2]
[388386191,1759145432343,-500.0,0.00025997,2]
[388386193,1759145432352,-1200.0,0.00025999,2]
[388386195,1759145432362,-39.93226462,0.00026,2]
[388386200,1759145432389,-1218.05396642,0.00026,2]
[388386203,1759145432398,-166.063822,0.00026168,2]
[388386205,1759145432407,-300.0,0.00026799,2]
[388386207,1759145432416,-1003.381466,0.000268,2]
[388386209,1759145432425,-154.712347,0.0002695,23]
[388386211,1759145432434,-262.51197967,0.00027077,2]
[388386213,1759145432443,-154.712347,0.00027118,7]
[388386215,1759145432452,-4417.20879584,0.00027148,2]
[388386217,1759145432461,-345.36287699,0.00027156,2]
[388386219,1759145432470,-15361.10579917,0.00027157,2]
[388386221,1759145432480,-2898.71218802,0.00027167,2]
[388386282,1759145438220,-537.89123339,0.00027167,2]
[388386309,1759145443405,-287.35186279,0.00027156,2]
[388386319,1759145446435,-92.89892537,0.00027156,2]
[388386320,1759145446445,-736.68642678,0.00027167,2]
[388386321,1759145446490,-34188.69323491,0.00027167,2]
[388386322,1759145446500,-220.23,0.00027167,10]
[388386323,1759145446509,-500.0,0.00027172,2]
[388386324,1759145446518,-500.0,0.00027172,2]
[388386325,1759145446528,-500.0,0.00027172,2]
[388386326,1759145446537,-500.0,0.00027172,2]
[388386327,1759145446547,-350.91540886,0.00027172,2]
[388386328,1759145446556,-500.0,0.00027172,2]
[388386329,1759145446565,-500.0,0.00027172,2]
[388386330,1759145446575,-500.0,0.00027172,2]
[388386331,1759145446583,-500.0,0.00027172,2]
[388386332,1759145446593,-500.0,0.00027172,2]
[388386333,1759145446602,-500.0,0.00027173,2]
[388386334,1759145446611,-500.0,0.00027173,2]
[388386335,1759145446620,-500.0,0.00027173,2]
[388386336,1759145446629,-500.0,0.00027173,2]
[388386337,1759145446640,-500.0,0.00027173,2]
[388386338,1759145446649,-500.0,0.00027173,2]
[388386339,1759145446658,-500.0,0.00027173,2]
[388386340,1759145446667,-500.0,0.00027173,2]
[388386341,1759145446676,-500.0,0.00027173,2]
[388386342,1759145446685,-500.0,0.00027173,2]
[388386343,1759145446694,-500.0,0.00027173,2]
[388386344,1759145446703,-500.0,0.00027173,2]
[388386345,1759145446713,-500.0,0.00027173,2]
[388386346,1759145446723,-55240.38360444,0.00027177,2]
[388386359,1759145525884,160.41241493,0.000272,120]
[388386366,1759145650713,156.0,0.00025,30]
[388386427,1759146632507,-500.0,0.00025205,2]
[388386429,1759146632516,-250.0,0.00025499,2]
[388386430,1759146632527,-81.60599253,0.00026,15]
[388386432,1759146632539,-184.1007185,0.00026,15]
[388386434,1759146632548,-154.712348,0.00026564,7]
[388386436,1759146632557,-1000.0,0.00026607,5]
[388386438,1759146632567,-1973.8521565,0.0002689,2]
[388386440,1759146632577,-156.16644154,0.000269,2]
[388386442,1759146632587,-1200.0,0.00026965,2]
[388386444,1759146632597,-300.0,0.00026966,2]
[388386446,1759146632607,-300.0,0.00026966,2]
[388386448,1759146632616,-300.0,0.00026966,2]
[388386450,1759146632626,-14377.5232188,0.00026966,2]
[388386452,1759146632636,-486.82708239,0.00026967,2]
[388386454,1759146632649,-601.76368681,0.00026967,2]
[388386456,1759146632662,-2545.95826846,0.00026967,2]
[388386459,1759146632674,-988.80134258,0.00026967,2]
[388386475,1759146632745,-290.59600417,0.00026967,2]
[388386476,1759146632755,-500.0,0.00026989,2]
[388386478,1759146632765,-500.0,0.00026989,2]
[388386480,1759146632776,-500.0,0.00026989,2]
[388386482,1759146632786,-395.6407862,0.00026989,2]
[388386484,1759146632796,-500.0,0.00026989,2]
[388386486,1759146632807,-500.0,0.00026989,2]
[388386488,1759146632816,-500.0,0.00026989,2]
[388386490,1759146632826,-1809.3799821,0.0002699,2]
[388386496,1759146632876,-1445.01497575,0.0002699,2]
[388386580,1759146638335,-394.76843694,0.00026966,2]
[388386582,1759146638346,-500.0,0.00026966,2]
[388386584,1759146638356,-340.15493402,0.00026966,2]
[388386586,1759146638366,-166.29093359,0.0002699,2]
[388386590,1759146638404,-26642.22998458,0.0002699,2]
[388386593,1759146638416,-3361.8,0.0002699,2]
[388386595,1759146638427,-9337.22213866,0.0002699,2]
[388386621,1759146640335,-6779.39728132,0.0002699,2]
[388386622,1759146640346,-183.53,0.0002699,10]
[388386623,1759146640356,-1976.06753972,0.00027,2]
[388386624,1759146640368,-359.99275684,0.00027,2]
[388386641,1759146643440,-4497.25253306,0.00027,2]
[388386642,1759146643549,-48881.20636767,0.00027,2]
[388386643,1759146643561,-22212.22435264,0.00027,2]
[388386644,1759146643572,-6696.31009928,0.00027,2]
[388386657,1759146646522,-588.905,0.00027,2]
[388386669,1759147832597,-546.43536769,0.00025205,2]
[388386670,1759147832608,-219.28967742,0.00025759,2]
[388386671,1759147832617,-500.0,0.00025859,2]
[388386672,1759147832627,-1727.12063692,0.00026789,2]
[388386673,1759147832636,-12113.27891355,0.0002679,2]
[388386674,1759147832648,-9605.87621046,0.0002679,2]
[388386675,1759147832658,-1200.0,0.00026799,2]
[388386676,1759147832672,-4798.40964292,0.000268,2]
[388386677,1759147832682,-300.0,0.00026848,2]
[388386678,1759147832691,-1200.0,0.00026861,2]
[388386679,1759147832700,-500.0,0.00026873,2]
[388386681,1759147832710,-500.0,0.00026873,2]
[388386683,1759147832719,-500.0,0.00026873,2]
[388386685,1759147832729,-500.0,0.00026873,2]
[388386687,1759147832738,-500.0,0.00026873,2]
[388386688,1759147832748,-500.0,0.00026873,2]
[388386689,1759147832760,-500.0,0.00026873,2]
[388386690,1759147832769,-500.0,0.00026873,2]
[388386691,1759147832779,-500.0,0.00026873,2]
[388386692,1759147832788,-500.0,0.00026873,2]
[388386693,1759147833012,-500.0,0.00026873,2]
[388386694,1759147833022,-500.0,0.00026873,2]
[388386695,1759147833032,-178.79,0.0002688,10]
[388386696,1759147833043,-351.26005947,0.00026889,2]
[388386697,1759147833053,-480.0,0.00026889,2]
[388386698,1759147833063,-480.0,0.00026889,2]
[388386699,1759147833073,-820.84,0.00026889,2]
[388386700,1759147833083,-480.0,0.00026889,2]
[388386701,1759147833094,-480.0,0.00026889,2]
[388386702,1759147833104,-480.0,0.00026889,2]
[388386703,1759147833116,-480.0,0.00026889,2]
[388386704,1759147833126,-480.0,0.00026889,2]
[388386705,1759147833137,-480.0,0.00026889,2]
[388386706,1759147833147,-480.0,0.00026889,2]
[388386707,1759147833156,-948.24,0.00026889,2]
[388386708,1759147833166,-480.0,0.00026889,2]
[388386709,1759147833176,-480.0,0.00026889,2]
[388386710,1759147833187,-1640.84,0.00026889,2]
[388386711,1759147833197,-2297.11,0.00026889,2]
[388386712,1759147833206,-919.72,0.00026889,2]
[388386713,1759147833216,-4891.39,0.00026889,2]
[388386714,1759147833226,-1384.27,0.00026889,2]
[388386715,1759147833236,-480.0,0.00026889,2]
[388386716,1759147833245,-480.0,0.00026889,2]
[388386717,1759147833253,-643.05,0.00026889,2]
[388386718,1759147833263,-480.0,0.00026889,2]
[388386719,1759147833273,-480.0,0.00026889,2]
[388386720,1759147833282,-480.0,0.00026889,2]
[388386721,1759147833291,-1159.02223841,0.00026889,2]
[388386722,1759147833590,-1484.67,0.00026889,2]
[388386723,1759147833601,-5812.14776159,0.00026889,2]
[388386724,1759147833610,-661.95,0.00026889,2]
[388386725,1759147833620,-480.0,0.00026889,2]
[388386726,1759147833630,-480.0,0.00026889,2]
[388386727,1759147833639,-8421.93,0.00026889,2]
[388386728,1759147833649,-967.01,0.00026889,2]
[388386729,1759147833658,-812.06,0.00026889,2]
[388386730,1759147833671,-2179.33,0.00026889,2]
[388386731,1759147833680,-572.64,0.00026889,2]
[388386732,1759147833690,-3117.52,0.00026889,2]
[388386733,1759147833699,-852.76,0.00026889,2]
[388386734,1759147833710,-900.73,0.00026889,2]
[388386735,1759147833720,-480.0,0.00026889,2]
[388386736,1759147833729,-920.3,0.00026889,2]
[388386737,1759147833740,-760.43,0.00026889,2]
[388386738,1759147833750,-1266.62,0.00026889,2]
[388386739,1759147833759,-5389.60457524,0.0002689,2]
[388386815,1759147838678,-279.15,0.0002688,10]
[388386817,1759147838688,-333.90136465,0.00026888,2]
[388386922,1759147840678,-166.09863535,0.00026888,2]
[388386924,1759147840687,-111.45581108,0.00026888,2]
[388387213,1759147844181,-89.91096997,0.00026888,2]
[388387215,1759147844190,-500.0,0.00026888,2]
[388387217,1759147844199,-376.94855034,0.00026888,2]
[388387219,1759147844209,-500.0,0.00026888,2]
[388387221,1759147844218,-500.0,0.00026888,2]
[388387223,1759147844226,-657.66,0.00026889,2]
[388387225,1759147844235,-480.0,0.00026889,2]
[388387227,1759147844244,-531.76,0.00026889,2]
[388387229,1759147844253,-480.0,0.00026889,2]
[388387230,1759147844262,-1689.83795114,0.0002689,2]
[388387392,1759147846682,-2200.0,0.0002689,2]
[388387394,1759147846693,-10300.1885577,0.0002689,2]
[388387397,1759147846735,-20699.408755,0.0002689,2]
[388387401,1759147846789,-92218.19496796,0.0002689,2]
[388387403,1759147846800,-1977.99539939,0.0002689,2]
[388387405,1759147846811,-4502.03366155,0.0002689,2]
[388387596,1759148351059,1336.63234202,0.00019178,2]
[388387597,1759148354503,-5000.0,0.00024953,2]
[388387598,1759148354604,-500.0,0.00025205,2]
[388387599,1759148369785,5000.0,0.00025205,2]
[388387600,1759148392727,4000.01,0.00025205,2]
[388387601,1759148392749,999.99,0.00025205,2]
[388387602,1759148409499,5000.0,0.00025205,2]
[388387603,1759148417693,4000.02,0.00025205,2]
[388387604,1759148417725,999.98,0.00025205,2]
[388387606,1759148441043,2579.949512,0.00025205,2]
[388387607,1759148464475,4969.10116815,0.00025201,2]
[388387608,1759148487263,4159.71822335,0.00025201,2]
[388387609,1759148531928,871.1906085,0.00025201,2]
[388387610,1759148531952,3324.100419,0.00025201,2]
[388387615,1759148555086,5000.0,0.00025201,2]
[388387617,1759148578258,1675.889581,0.00025201,2]
[388387627,1759148608117,0.02,0.00025201,2]
[388387628,1759148608139,4969.10116815,0.00025201,2]
[388387629,1759148638227,-500.0,0.00025205,2]
[388387630,1759148638934,3340.94878428,0.00025201,2]
[388387632,1759148748090,480.0,0.00025205,2]
[388387633,1759148757254,5000.0,0.00025205,2]
[388387634,1759148765021,179.06121572,0.00025205,2]
[388387635,1759148765044,2845.07920328,0.00025205,2]
[388387636,1759148780521,5000.0,0.00025205,2]
[388387637,1759148810389,1975.859581,0.00025205,2]
[388387638,1759148847307,300.0,0.000252,2]
[388387640,1759148894442,9498.94576682,0.000125,2]
[388387641,1759148896277,201.06423318,0.00018,2]
[388387642,1759148896300,7537.61394428,0.00018,2]
[388387643,1759148900874,2462.39605572,0.00025205,2]
[388387644,1759148900897,2537.60394428,0.00025205,2]
[388387645,1759148917136,5000.0,0.00025205,2]
[388387646,1759148925566,2462.40605572,0.00025205,2]
[388387647,1759148925588,2537.59394428,0.00025205,2]
[388387648,1759148941277,5000.0,0.00025205,2]
[388387649,1759148949205,5000.0,0.00025205,2]
[388387650,1759148964778,0.01,0.00025205,2]
[388387651,1759148964801,4999.99,0.00025205,2]
[388387652,1759148966461,300.0,0.000252,2]
[388387681,1759148972688,4700.02,0.00025205,2]
[388387683,1759148972711,299.98,0.00025205,2]
[388387800,1759148978241,300.0,0.000252,2]
[388387861,1759148986180,214.16,0.000249,2]
[388387862,1759148988906,5000.0,0.00025205,2]
[388387863,1759148989173,300.0,0.000252,2]
[388387864,1759148989433,-5000.0,0.00025229,2]
[388387865,1759148989809,-4706.0675386,0.00025252,2]
[388387866,1759148989839,-287.8749228,0.00025338,2]
[388387867,1759149000802,-300.0,0.000252,2]
[388387868,1759149000831,-12.1250772,0.00025338,2]
[388387869,1759149000862,-881.0,0.0002534,2]
[388387870,1759149000891,-300.0,0.00025341,2]
[388387871,1759149000921,-1200.0,0.00025341,2]
[388387872,1759149000953,-300.0,0.00025341,2]
[388387873,1759149000982,-484.9750205,0.00025342,2]
[388387874,1759149001243,-3043.8098046,0.00025342,2]
[388387875,1759149001271,-509.23772768,0.00025809,2]
[388387876,1759149001300,-1416.97255384,0.00025873,7]
[388387877,1759149009386,-300.0,0.00025341,2]
[388387878,1759149009415,-300.0,0.00025341,2]
[388387879,1759149009444,-300.0,0.00025341,2]
[388387880,1759149009473,-300.0,0.00025341,2]
[388387881,1759149009501,-300.0,0.00025341,2]
[388387882,1759149009528,-59.96982776,0.00025873,7]
[388387883,1759149009556,-3211.80841177,0.0002599,2]
[388387884,1759149009706,-456.45352094,0.0002599,2]
[388387885,1759149009732,-219.39,0.00026137,2]
[388387886,1759149009760,-1776.22991561,0.0002639,2]
[388387887,1759149009788,-298.81,0.0002648,10]
[388387888,1759149009816,-249.01,0.0002648,10]
[388387889,1759149009845,-207.51,0.0002648,10]
[388387890,1759149009874,-1200.0,0.00026489,2]
[388387891,1759149009903,-249.8,0.0002649,3]
[388387892,1759149019528,-5000.0,0.00024953,2]
[388387924,1759149031897,-300.0,0.000249,2]
[388387925,1759149031907,-300.0,0.000252,2]
[388387926,1759149031919,-249.61862922,0.00026477,2]
[388387927,1759149031931,-545.40302814,0.00026477,2]
[388387928,1759149031948,-12505.86135371,0.00026477,2]
[388387930,1759149031985,-12864.54837047,0.00026477,2]
[388387932,1759149031995,-172.92,0.0002648,10]
[388387933,1759149032004,-235.27661122,0.00026489,2]
[388387935,1759149032013,-500.0,0.00026489,2]
[388387937,1759149032022,-500.0,0.00026489,2]
[388387939,1759149032032,-500.0,0.00026489,2]
[388387940,1759149032042,-749.42,0.0002649,3]
[388387941,1759149032051,-3012.87120833,0.0002649,2]
[388387942,1759149032062,-8394.64795271,0.0002649,2]
[388387943,1759149035604,-481.21751067,0.00026489,2]
[388387944,1759149035633,-181.06366002,0.00026489,2]
[388387945,1759149035663,-500.0,0.00026489,2]
[388387946,1759149035693,-479.75425608,0.00026489,2]
[388387978,1759149037689,-864.65,0.00026489,10]
[388387980,1759149037699,-8237.35987955,0.0002649,2]
[388387985,1759149037746,-4698.04128397,0.0002649,2]
[388387988,1759149037758,-65236.70104504,0.0002649,2]
[388387990,1759149037767,-20234.8950183,0.0002649,2]
[388387992,1759149037776,-480.0,0.00026499,2]
[388387993,1759149037785,-881.4,0.00026499,2]
[388387995,1759149037794,-517.39563959,0.00026499,2]
[388387997,1759149037804,-480.0,0.00026499,2]
[388387999,1759149037813,-480.0,0.00026499,2]
[388388000,1759149037821,-809.23,0.00026499,2]
[388388001,1759149037830,-509.6,0.00026499,2]
[388388002,1759149037839,-480.0,0.00026499,2]
[388388003,1759149037849,-673.49,0.00026499,2]
[388388004,1759149037858,-480.0,0.00026499,2]
[388388005,1759149037869,-480.0,0.00026499,2]
[388388006,1759149037881,-480.0,0.00026499,2]
[388388007,1759149037891,-200000.0,0.000265,23]
[388388008,1759149037901,-151.0,0.00026577,7]
[388388009,1759149037911,-2429.409836,0.00026577,7]
[388388010,1759149037920,-151.0,0.00026577,7]
[388388011,1759149037929,-2429.409836,0.00026577,7]
[388388012,1759149037939,-267.025641,0.00026577,7]
[388388013,1759149037948,-2429.409836,0.00026577,7]
[388388014,1759149037957,-2429.409836,0.00026577,7]
[388388015,1759149037966,-154.09379,0.00026577,7]
[388388016,1759149037975,-151.0,0.00026577,7]
[388388017,1759149037984,-151.0,0.00026577,7]
[388388018,1759149037994,-151.0,0.00026577,7]
[388388019,1759149038004,-316.456546,0.00026577,7]
[388388020,1759149038013,-316.456546,0.00026577,7]
[388388021,1759149038023,-316.456546,0.00026577,7]
[388388022,1759149038032,-316.456546,0.00026577,7]
[388388023,1759149038041,-151.899556,0.00026577,7]
[388388024,1759149038051,-151.0,0.00026577,7]
[388388025,1759149038061,-151.0,0.00026577,7]
[388388026,1759149038070,-151.0,0.00026577,2]
[388388027,1759149038080,-151.0,0.00026577,7]
[388388028,1759149038089,-29859.8737899,0.00026577,2]
[388388029,1759149038099,-6744.96500611,0.00026577,2]
[388388030,1759149038109,-480.0,0.00026587,2]
[388388031,1759149038119,-480.0,0.00026587,2]
[388388032,1759149038129,-218.61128393,0.00026587,2]
[388388033,1759149038139,-480.0,0.00026587,2]
[388388034,1759149038149,-994.94,0.00026587,2]
[388388035,1759149038158,-480.0,0.00026587,2]
[388388036,1759149038167,-1572.47,0.00026587,2]
[388388037,1759149038177,-480.0,0.00026587,2]
[388388038,1759149038192,-480.0,0.00026587,2]
[388388039,1759149038203,-1326.59,0.00026587,2]
[388388040,1759149038212,-2201.4,0.00026587,2]
[388388041,1759149038223,-4687.58,0.00026587,2]
[388388042,1759149038240,-151.0,0.00026587,7]
[388388043,1759149038256,-616.26,0.00026587,2]
[388388044,1759149038270,-8103.52,0.00026587,2]
[388388045,1759149038280,-480.0,0.00026587,2]
[388388046,1759149038290,-2429.409836,0.00026587,7]
[388388047,1759149038300,-151.0,0.00026587,7]
[388388048,1759149038310,-2429.409836,0.00026587,7]
[388388049,1759149038320,-480.0,0.00026587,2]
[388388050,1759149038330,-2429.409836,0.00026587,7]
[388388051,1759149038340,-2429.409836,0.00026587,7]
[388388052,1759149038350,-926.72,0.00026587,2]
[388388053,1759149038360,-151.0,0.00026587,7]
[388388054,1759149038378,-151.0,0.00026587,7]
[388388055,1759149038389,-480.0,0.00026587,2]
[388388056,1759149038399,-159.812187,0.00026587,7]
[388388057,1759149038409,-8071.01,0.00026587,2]
[388388058,1759149038420,-778.23,0.00026587,2]
[388388059,1759149038431,-2088.53,0.00026587,2]
[388388060,1759149038441,-987.79,0.00026587,2]
[388388061,1759149038452,-316.456546,0.00026587,7]
[388388062,1759149038462,-316.456546,0.00026587,7]
[388388063,1759149038473,-316.456546,0.00026587,7]
[388388064,1759149038483,-316.456546,0.00026587,7]
[388388065,1759149038493,-881.96,0.00026587,2]
[388388066,1759149038503,-2987.62,0.00026587,2]
[388388067,1759149038513,-151.0,0.00026587,7]
[388388068,1759149038522,-151.0,0.00026587,7]
[388388069,1759149038532,-151.0,0.00026587,7]
[388388070,1759149038543,-153.14851438,0.00026587,2]
[388388071,1759149038553,-151.0,0.00026587,7]
[388388072,1759149038562,-151.0,0.00026587,7]
[388388073,1759149038572,-151.0,0.00026587,7]
[388388074,1759149038581,-630.26,0.00026587,2]
[388388075,1759149038591,-42340.89208441,0.00026587,2]
[388388076,1759149038601,-500.0,0.00026587,2]
[388388077,1759149038611,-151.0,0.000266,17]
[388388078,1759149038620,-151.0,0.000266,19]
[388388079,1759149038630,-26165.43138153,0.00026604,2]
[388388080,1759149038639,-170.64745108,0.0002663,30]
[388388081,1759149038649,-170.64745109,0.0002663,30]
[388388082,1759149038658,-153.62719,0.00026657,7]
[388388083,1759149038668,-2429.409836,0.00026657,7]
[388388084,1759149038678,-151.0,0.00026657,7]
[388388085,1759149038687,-2429.409836,0.00026657,7]
[388388086,1759149038697,-2429.409836,0.00026657,7]
[388388087,1759149038707,-2429.409836,0.00026657,7]
[388388088,1759149038717,-151.0,0.00026657,7]
[388388089,1759149038726,-167.494555,0.00026657,7]
[388388090,1759149038735,-316.456546,0.00026657,7]
[388388091,1759149038745,-316.456546,0.00026657,7]
[388388092,1759149038754,-316.456546,0.00026657,7]
[388388093,1759149038764,-316.456546,0.00026657,7]
[388388094,1759149038774,-151.0,0.00026657,7]
[388388095,1759149038783,-151.0,0.00026657,7]
[388388096,1759149038793,-151.0,0.00026657,7]